bitfinex/quotes_SOLUSD_20250228
["timestamp","ask_amount","ask_price","bid_price","bid_amount"]
[1740754529905,2.0,144.63,144.51,17.2993]
[1740754530088,2.0,144.62,144.54,3.43475591]
[1740754530290,2.0,144.63,144.54,3.43475591]
[1740754530478,2.0,144.63,144.55,1.26500963]
[1740754530798,2.0,144.64,144.55,1.26500963]
[1740754531008,34.5932654,144.65,144.56,18.64964886]
[1740754531179,34.5932654,144.65,144.6,0.14216157]
[1740754531681,34.13946831,144.64,144.55,1.26500963]
[1740754531887,34.5932654,144.65,144.6,18.64964886]
[1740754532086,13.21808788,144.66,144.59,11.68]
[1740754532287,13.21808788,144.66,144.61,6.9151]
[1740754532589,5.68688788,144.66,144.62,18.79181043]
[1740754532793,64.07454561,144.71,144.62,18.79181043]
[1740754532983,64.07454561,144.71,144.66,18.79181043]
[1740754533306,64.07454561,144.71,144.66,0.14216157]
[1740754534100,64.07454561,144.71,144.7,0.14216157]
[1740754534478,64.07454561,144.71,144.7,319.05296157]
[1740754534692,64.07454561,144.71,144.7,322.52833591]
[1740754534992,64.07454561,144.71,144.66,37.24224886]
[1740754535192,64.07454561,144.71,144.67,0.14216157]
[1740754535405,64.07454561,144.71,144.69,20.0]
[1740754535574,64.07454561,144.71,144.7,14.05997284]
[1740754535986,66.07454561,144.71,144.7,14.05997284]
[1740754536194,72.98484561,144.71,144.7,14.05997284]
[1740754536402,74.98484561,144.71,144.7,14.05997284]
[1740754537184,72.98484561,144.71,144.7,14.05997284]
[1740754537497,93.63449447,144.71,144.7,6.52877284]
[1740754537879,2.0,144.65,144.61,18.74663047]
[1740754538293,2.0,144.62,144.61,18.74663047]
[1740754538599,2.0,144.62,144.57,175.0241621]
[1740754538987,2.0,144.59,144.57,175.0241621]
[1740754539490,13.68,144.63,144.57,175.0241621]
[1740754539797,2.0,144.65,144.57,181.9411621]
[1740754540003,2.0,144.64,144.57,175.0241621]
[1740754540177,2.0,144.61,144.57,175.0241621]
[1740754540906,12.1694,144.66,144.57,181.9408621]
[1740754540907,2.0,144.62,144.57,181.9408621]
[1740754541085,2.0,144.62,144.53,20.83774113]
[1740754541086,18.5921,144.68,144.58,98.35257133]
[1740754541290,18.5921,144.68,144.58,410.35257133]
[1740754541291,11.68,144.68,144.58,410.35257133]
[1740754541479,18.5919,144.68,144.58,410.35257133]
[1740754541811,64.04961811,144.67,144.58,410.35257133]
[1740754542096,64.04961811,144.67,144.58,98.35257133]
[1740754542487,22.801825,144.67,144.58,98.35257133]
[1740754543198,22.801825,144.67,144.66,56.47703543]
[1740754543404,59.81053629,144.67,144.58,98.35257133]
[1740754543603,1.81557732,144.66,144.64,42.26852243]
[1740754543784,20.14216157,144.65,144.64,42.26852243]
[1740754544190,20.0,144.64,144.58,143.03317493]
[1740754544394,0.14216157,144.63,144.58,143.03317493]
[1740754544700,1.81582301,144.67,144.58,143.03317493]
[1740754544894,20.0,144.63,144.58,143.03317493]
[1740754545901,38.79181043,144.62,144.56,128.15758591]
[1740754546100,18.64964886,144.6,144.56,128.15758591]
[1740754546298,20.0,144.57,144.56,128.15758591]
[1740754547089,26.917,144.57,144.56,128.15758591]
[1740754547608,26.917,144.57,144.47,6.9217]
[1740754547802,26.917,144.57,144.46,0.4]
[1740754547988,123.3565,144.59,144.46,7.3221]
[1740754548187,123.3565,144.59,144.46,0.4]
[1740754548188,20.0,144.55,144.46,0.4]
[1740754551111,6.9156,144.6,144.56,0.03]
[1740754551492,38.64964886,144.57,144.56,0.03]
[1740754551692,38.64964886,144.57,144.46,0.4]
[1740754551693,20.0,144.54,144.46,0.4]
[1740754551892,11.68,144.53,144.46,0.4]
[1740754552113,116.48,144.57,144.46,0.4]
[1740754552315,116.48,144.57,144.47,18.79181043]
[1740754552491,123.3972,144.57,144.49,312.0]
[1740754552891,123.3972,144.57,144.46,0.4]
[1740754552892,123.3972,144.57,144.46,7.3221]
[1740754553088,116.48,144.57,144.47,18.64964886]
[1740754554107,123.3972,144.57,144.47,18.64964886]
[1740754554303,123.3972,144.57,144.46,0.54216157]
[1740754554691,116.48,144.57,144.47,18.79181043]
[1740754555023,116.48,144.57,144.46,7.3222]
[1740754555311,116.48,144.57,144.46,0.4]
[1740754555312,123.3971,144.57,144.46,0.4]
[1740754555694,123.3971,144.57,144.47,0.14216157]
[1740754555920,232.08801626,144.56,144.5,312.0]
[1740754556397,232.08801626,144.56,144.47,0.14216157]
[1740754556723,232.08801626,144.56,144.48,6.9213]
[1740754557026,232.08801626,144.56,144.49,0.14216157]
[1740754557319,232.08801626,144.56,144.49,3.43235935]
[1740754557320,13.92528097,144.55,144.49,3.43235935]
[1740754557617,13.92528097,144.55,144.51,20.0]
[1740754557831,13.92528097,144.55,144.47,2.0]
[1740754557997,13.92528097,144.55,144.48,2.0]
[1740754558622,167.1033717,144.54,144.51,3.49346516]
[1740754559004,167.1033717,144.54,144.51,3.47820683]
[1740754559324,167.1033717,144.54,144.53,312.0]
[1740754559504,153.17809073,144.54,144.53,312.0]
[1740754559817,153.17809073,144.54,144.52,0.14216157]
[1740754559996,153.17809073,144.54,144.51,16.77790683]
[1740754560194,153.17809073,144.54,144.52,0.14216157]
[1740754560806,153.17809073,144.54,144.53,378.36071043]
[1740754560807,7.704e-05,144.54,144.53,378.36071043]
[1740754560996,148.1614528,144.58,144.54,0.14216157]
[1740754561197,3.57083132,144.58,144.57,46.22409754]
[1740754561399,0.063,144.64,144.58,0.14216157]
[1740754562327,0.063,144.64,144.6,0.14216157]
[1740754562493,0.063,144.64,144.6,20.14216157]
[1740754562697,0.063,144.64,144.62,6.9146]
[1740754562897,0.063,144.64,144.63,0.14216157]
[1740754563199,4.456e-05,144.68,144.66,20.14216157]
[1740754563397,4.456e-05,144.68,144.67,18.79181043]
[1740754563628,4.456e-05,144.71,144.7,20.14216157]
[1740754563799,4.456e-05,144.71,144.7,39.44181043]
[1740754564002,3.855e-05,144.76,144.7,82.95133954]
[1740754564223,3.855e-05,144.76,144.75,312.0]
[1740754564427,3.855e-05,144.76,144.75,312.14216157]
[1740754564622,3.855e-05,144.76,144.75,312.0]
[1740754564832,0.063,144.79,144.76,0.14216157]
[1740754565120,0.063,144.79,144.78,0.14216157]
[1740754565326,0.063,144.79,144.75,10.40749612]
[1740754565513,0.063,144.79,144.72,0.14216157]
[1740754565913,0.063,144.79,144.78,20.14216157]
[1740754566519,0.063,144.82,144.79,0.14216157]
[1740754566720,0.063,144.82,144.81,20.14216157]
[1740754566923,0.063,144.82,144.81,27.04776157]
[1740754567133,22.3673,144.94,144.82,0.14216157]
[1740754567631,34.39711183,145.07,144.9,0.14216157]
[1740754567812,34.19874226,145.07,144.91,11.64]
[1740754568003,34.19874226,145.07,144.98,312.0]
[1740754568203,34.79582765,145.08,144.98,312.0]
[1740754568402,34.79582765,145.08,144.92,0.14216157]
[1740754568630,34.32132106,145.04,144.92,0.14216157]
[1740754568817,34.87617425,145.03,144.92,0.14216157]
[1740754568999,34.87617425,145.03,144.92,6.9001]
[1740754569204,41.21592106,145.04,144.93,18.62642263]
[1740754569437,18.64964886,145.03,144.93,18.62642263]
[1740754569630,53.52582311,145.03,144.93,18.62642263]
[1740754569825,20.0,145.0,144.93,18.62642263]
[1740754570123,25.94137655,145.04,144.94,0.14216157]
[1740754570124,41.21592106,145.04,144.94,0.14216157]
[1740754570732,58.45252106,145.04,144.94,18.62642263]
[1740754570938,42.78424886,145.02,144.94,18.62642263]
[1740754571230,20.0,144.95,144.94,9.11e-06]
[1740754571438,186.5726,145.02,144.94,9.11e-06]
[1740754571734,20.0,144.97,144.94,9.11e-06]
[1740754572026,36.38378065,145.01,144.94,9.11e-06]
[1740754572205,8.2449,144.99,144.94,9.11e-06]
[1740754572406,8.2449,144.99,144.82,10.40495965]
[1740754572614,8.2449,144.99,144.8,11.64]
[1740754572615,0.14216157,144.98,144.8,18.5456]
[1740754572801,24.1445,144.96,144.81,10.39073269]
[1740754573313,6.8984,144.96,144.85,3.4543035]
[1740754573537,6.8984,144.96,144.8,11.64]
[1740754573538,24.1445,144.96,144.8,11.64]
[1740754573715,11.62,144.95,144.8,11.64]
[1740754574026,20.0,144.91,144.76,12.1952]
[1740754574333,20.0,144.91,144.73,18.5294]
[1740754574334,18.64964886,144.89,144.73,18.5294]
[1740754575131,18.64964886,144.87,144.78,312.0]
[1740754575311,6.9022,144.88,144.78,312.0]
[1740754575625,6.9022,144.88,144.77,32.5962396]
[1740754575833,116.28,144.91,144.77,32.5962396]
[1740754576125,18.64964886,144.9,144.77,32.5962396]
[1740754576511,20.0,144.87,144.77,32.5962396]
[1740754576712,20.0,144.87,144.73,18.5294]
[1740754576713,20.0,144.87,144.78,32.5962396]
[1740754577030,6.9013,144.9,144.78,32.5962396]
[1740754577335,84.86789629,144.91,144.78,32.5962396]
[1740754577826,0.14216157,144.89,144.78,32.5962396]
[1740754578029,102.11989629,144.91,144.78,32.5962396]
[1740754578335,15.03865895,144.88,144.78,32.5962396]
[1740754578715,17.24783405,144.91,144.79,1.59200604]
[1740754579228,17.24783405,144.91,144.79,1.59150053]
[1740754579808,24.14873405,144.91,144.79,1.59150053]
[1740754580009,17.24783405,144.91,144.79,1.59150053]
[1740754580914,18.5197,144.94,144.81,0.14216157]
[1740754581114,34.80720632,144.92,144.8,7.04816157]
[1740754581420,36.61404038,144.92,144.78,32.5962396]
[1740754581723,20.0,144.88,144.78,32.5962396]
[1740754582125,43.19772731,144.93,144.78,351.5031396]
[1740754582330,0.063,144.96,144.8,18.79181043]
[1740754582635,0.063,144.96,144.82,0.14216157]
[1740754582937,0.063,144.96,144.88,18.79181043]
[1740754583115,0.063,144.96,144.9,6.9013]
[1740754583433,0.063,144.96,144.91,20.24028634]
[1740754584029,0.063,144.96,144.91,1.59063748]
[1740754584349,0.063,144.96,144.91,20.24028634]
[1740754584536,0.063,144.96,144.93,0.14216157]
[1740754584832,0.063,144.96,144.92,0.14216157]
[1740754585130,0.063,144.96,144.9,8.34967774]
[1740754585515,20.0,145.03,144.95,312.0]
[1740754585714,34.01536736,145.04,144.95,312.0]
[1740754586642,26.8958,145.02,144.95,312.0]
[1740754586819,26.8958,145.02,144.92,6.9002]
[1740754587011,20.0,145.03,144.92,6.9002]
[1740754587328,20.0,145.02,144.92,6.9002]
[1740754587736,6.8941,145.05,144.93,0.14216157]
[1740754588115,41.14536846,145.05,144.92,24.151]
[1740754588315,20.0,145.02,144.92,6.9002]
[1740754588524,41.14536846,145.05,144.94,6.8994]
[1740754588739,104.58848927,145.07,144.94,6.8994]
[1740754588942,18.64964886,145.03,144.9,0.14216157]
[1740754589116,0.14216157,145.02,144.89,6.9017]
[1740754589438,97.98392945,145.07,144.9,4.0]
[1740754589637,127.4651265,145.06,144.88,8.9021]
[1740754589817,93.0646,145.06,144.89,18.64964886]
[1740754590218,127.4651265,145.06,144.92,2.0]
[1740754590520,6.8936,145.06,144.96,27.54794886]
[1740754590718,94.46367132,145.07,144.99,2.0]
[1740754590928,34.4005265,145.06,144.99,2.0]
[1740754591132,34.4005265,145.06,144.98,4.0]
[1740754591332,19.8751,145.09,145.02,18.64964886]
[1740754591528,0.063,145.09,145.02,20.64964886]
[1740754591935,6.9552,145.09,144.98,4.0]
[1740754592129,34.87384094,145.08,144.98,2.0]
[1740754592337,0.14216157,145.08,144.97,2.0]
[1740754592516,0.14216157,145.08,144.95,2.0]
[1740754592717,20.0,145.04,144.94,2.0]
[1740754593031,31.6,145.04,144.95,20.64964886]
[1740754593240,31.6,145.04,144.95,18.64964886]
[1740754593535,31.6,145.04,144.95,332.64964886]
[1740754593716,31.6,145.04,144.95,312.0]
[1740754593916,31.6,145.04,144.93,2.0]
[1740754594120,31.6,145.04,144.94,18.64964886]
[1740754594351,31.6,145.04,144.94,20.64964886]
[1740754594526,31.6,145.04,144.94,2.0]
[1740754594728,6.8951,145.03,144.94,2.0]
[1740754594928,24.1329,145.03,144.93,2.0]
[1740754595128,24.1329,145.03,144.94,18.64964886]
[1740754595532,24.1329,145.03,144.94,22.64964886]
[1740754595734,24.1329,145.03,144.95,2.0]
[1740754596121,24.1329,145.03,144.94,18.64964886]
[1740754596529,24.1329,145.03,144.95,2.0]
[1740754596729,24.1329,145.03,144.95,4.0]
[1740754596930,24.1329,145.03,144.96,18.64964886]
[1740754597340,24.1329,145.03,144.96,20.64964886]
[1740754597652,24.1329,145.03,144.95,314.0]
[1740754597856,6.8951,145.03,144.96,2.59172386]
[1740754598052,6.8951,145.03,144.96,0.59172386]
[1740754598342,20.0,145.0,144.92,0.59172386]
[1740754598544,20.0,145.0,144.89,0.59172386]
[1740754598838,44.1395,144.99,144.89,0.59172386]
[1740754599143,44.1395,144.99,144.86,0.59172386]
[1740754599144,20.0,144.95,144.86,0.59172386]
[1740754599380,20.0,144.93,144.84,2.0]
[1740754599530,20.0,144.93,144.86,0.59172386]
[1740754599844,20.0,144.93,144.84,2.0]
[1740754600226,20.0,144.93,144.86,2.59172386]
[1740754600421,20.0,144.93,144.84,2.0]
[1740754600618,20.0,144.93,144.83,137.10093592]
[1740754600831,24.1511,144.92,144.83,137.10093592]
[1740754601039,24.1511,144.92,144.84,314.0]
[1740754601246,24.1511,144.92,144.85,0.59172386]
[1740754601447,24.1511,144.92,144.82,2.0]
[1740754601624,20.0,144.89,144.82,2.0]
[1740754601954,24.1511,144.92,144.84,0.59172386]
[1740754602117,24.1511,144.92,144.82,2.0]
[1740754602321,20.0,144.89,144.82,2.59172386]
[1740754602521,20.0,144.89,144.8,18.64964886]
[1740754602522,6.9003,144.92,144.83,2.59172386]
[1740754602743,20.0,144.92,144.84,2.59172386]
[1740754603961,20.0,144.92,144.84,2.0]
[1740754604135,20.0,144.92,144.83,2.0]
[1740754604341,23.54706572,144.92,144.83,0.59172386]
[1740754604555,23.54706572,144.92,144.83,312.0]
[1740754604965,6.9008,144.91,144.83,314.59172386]
[1740754605262,6.9008,144.91,144.84,2.0]
[1740754605460,6.8989,144.95,144.86,2.0]
[1740754605663,6.8989,144.95,144.86,2.59172386]
[1740754605851,11.58,145.0,144.92,2.59172386]
[1740754606053,18.4767,145.0,144.94,0.59172386]
[1740754606359,18.4767,145.0,144.92,0.59172386]
[1740754606565,18.4767,145.0,144.93,0.59172386]
[1740754606886,6.8961,145.01,144.94,2.0]
[1740754607068,6.8961,145.01,144.95,0.59172386]
[1740754607254,6.8961,145.01,144.94,2.59172386]
[1740754607445,6.8961,145.01,144.94,2.0]
[1740754608150,6.8961,145.01,144.94,2.59172386]
[1740754608360,6.8961,145.01,144.94,2.0]
[1740754608566,6.8961,145.01,144.94,312.0]
[1740754608952,20.0,145.0,144.91,2.0]
[1740754609154,20.0,145.0,144.9,2.59172386]
[1740754609365,18.7,145.0,144.89,2.0]
[1740754609665,0.14216157,145.0,144.86,2.59172386]
[1740754609867,0.14216157,145.0,144.85,2.0]
[1740754610059,0.14216157,145.0,144.86,2.0]
[1740754610257,0.14216157,145.0,144.94,0.03]
[1740754610458,0.14216157,145.0,144.85,20.64964886]
[1740754610759,0.14216157,145.0,144.86,2.0]
[1740754610962,18.79181043,144.98,144.86,2.0]
[1740754611170,11.58,144.97,144.85,20.64964886]
[1740754611467,11.58,144.97,144.83,19.24137272]
[1740754611468,20.0,144.93,144.83,2.0]
[1740754611672,20.0,144.93,144.82,2.0]
[1740754611969,0.14216157,144.92,144.8,2.0]
[1740754612162,0.14216157,144.87,144.78,0.59172386]
[1740754612375,11.58,144.87,144.77,2.0]
[1740754612677,20.0,144.84,144.75,2.0]
[1740754612874,20.0,144.84,144.76,2.0]
[1740754613078,24.1662,144.83,144.74,2.0]
[1740754613261,24.1662,144.83,144.75,2.0]
[1740754613459,24.1662,144.83,144.77,2.0]
[1740754613875,6.9042,144.84,144.79,2.0]
[1740754614252,26.9042,144.84,144.75,2.0]
[1740754614457,26.9042,144.84,144.76,2.0]
[1740754614684,15.08282722,144.87,144.78,2.0]
[1740754614866,18.4828,144.87,144.82,2.0]
[1740754615183,11.58,144.87,144.81,2.59172386]
[1740754615373,18.4827,144.87,144.82,2.0]
[1740754615573,18.4827,144.87,144.81,2.59172386]
[1740754615758,18.4827,144.87,144.78,2.0]
[1740754615955,18.4827,144.87,144.79,2.0]
[1740754616166,18.4827,144.87,144.83,21.00411586]
[1740754616375,20.0,144.88,144.83,21.00411586]
[1740754616674,150.7356,144.95,144.84,2.0]
[1740754616675,3.46113834,144.92,144.84,2.0]
[1740754616891,116.24,144.95,144.84,2.0]
[1740754617072,3.45594455,144.93,144.85,2.0]
[1740754617389,6.8994,144.94,144.86,2.0]
[1740754617678,6.8994,144.94,144.84,2.0]
[1740754617679,20.0,144.91,144.84,2.0]
[1740754618180,20.0,144.91,144.83,0.59172386]
[1740754618181,6.8994,144.94,144.86,2.59172386]
[1740754618397,24.1479,144.94,144.85,2.59172386]
[1740754618555,24.1479,144.94,144.86,312.0]
[1740754618750,20.0,144.91,144.83,2.0]
[1740754618969,6.9013,144.9,144.83,2.0]
[1740754619169,17.2493,144.94,144.84,2.59172386]
[1740754619401,6.8998,144.93,144.84,2.59172386]
[1740754620052,6.8998,144.93,144.85,2.0]
[1740754620258,24.1495,144.93,144.81,2.59172386]
[1740754620582,24.1495,144.93,144.78,1.44964652]
[1740754620583,18.79181043,144.92,144.8,2.59172386]
[1740754620885,24.1495,144.93,144.8,2.59172386]
[1740754621058,18.79181043,144.92,144.8,0.59172386]
[1740754621260,18.79181043,144.92,144.79,2.59172386]
[1740754621577,24.1495,144.93,144.85,0.59172386]
[1740754621778,6.8998,144.93,144.87,0.59172386]
[1740754621985,6.8995,144.94,144.87,2.59172386]
[1740754622288,1.40827614,145.04,144.85,312.0]
[1740754622289,3.38599106,145.01,144.92,2.59172386]
[1740754622505,10.28199106,145.01,144.92,2.59172386]
[1740754622653,6.896,145.01,144.93,2.0]
[1740754622988,6.896,145.01,144.94,0.59172386]
[1740754623371,24.1361,145.01,144.93,2.59172386]
[1740754623670,24.1361,145.01,144.94,0.59172386]
[1740754623671,6.896,145.01,144.94,0.59172386]
[1740754623981,6.896,145.01,144.96,0.59172386]
[1740754624286,6.8956,145.02,144.96,0.59172386]
[1740754624488,7.6382,145.06,144.94,0.59172386]
[1740754624489,6.8941,145.05,144.94,0.59172386]
[1740754624659,24.1295,145.05,144.93,0.59172386]
[1740754624855,20.0,145.02,144.93,2.59172386]
[1740754625160,6.8941,145.05,144.96,2.59172386]
[1740754625493,6.8941,145.05,144.97,2.0]
[1740754625725,6.8912,145.12,145.06,0.59172386]
[1740754626015,34.53143674,145.15,145.07,0.59172386]
[1740754626193,34.53143674,145.15,145.08,0.59172386]
[1740754626386,6.8896,145.15,145.08,2.59172386]
[1740754626590,6.8896,145.15,145.08,21.38353429]
[1740754626811,0.063,145.16,145.08,2.59172386]
[1740754626989,0.063,145.16,145.13,0.59172386]
[1740754627199,0.063,145.16,145.12,0.59172386]
[1740754627415,0.063,145.16,145.13,0.59172386]
[1740754627614,0.063,145.16,145.14,2.59172386]
[1740754627820,0.063,145.16,145.15,2.59172386]
[1740754628008,0.063,145.16,145.11,2.0]
[1740754628217,0.063,145.16,145.12,2.0]
[1740754628516,0.03512135,145.18,145.15,0.59172386]
[1740754628686,0.03512135,145.18,145.07,20.0]
[1740754628687,20.0,145.16,145.09,0.59172386]
[1740754628886,20.0,145.16,145.09,312.59172386]
[1740754629083,24.1129,145.15,145.09,312.59172386]
[1740754629497,20.0,145.12,145.02,0.59172386]
[1740754629717,20.0,145.11,145.0,2.59172386]
[1740754629916,20.0,145.11,145.01,2.0]
[1740754630127,20.0,145.11,144.98,14.13172386]
[1740754630319,20.0,145.11,145.02,0.59172386]
[1740754630827,20.0,145.11,144.99,0.59172386]
[1740754631121,24.1228,145.09,144.99,0.59172386]
[1740754631283,20.0,145.06,145.0,2.59172386]
[1740754631713,6.8922,145.09,145.01,2.59172386]
[1740754631945,6.8922,145.09,145.01,2.0]
[1740754632217,11.54,145.12,145.04,0.59172386]
[1740754632521,18.4308,145.12,145.03,312.59172386]
[1740754632911,20.0,145.08,144.97,2.0]
[1740754633102,20.0,145.04,144.95,2.59172386]
[1740754633314,20.0,145.04,144.94,2.59172386]
[1740754633623,20.0,145.04,144.92,11.54]
[1740754633624,20.0,145.04,144.92,13.54]
[1740754633831,20.0,145.0,144.92,11.54]
[1740754634135,20.0,145.0,144.91,2.59172386]
[1740754634504,20.0,145.0,144.92,0.59172386]
[1740754634700,20.0,145.0,144.92,2.59172386]
[1740754634896,3.39652259,145.02,144.93,2.0]
[1740754635128,6.8917,145.1,144.99,0.59172386]
[1740754635332,24.1215,145.1,145.0,0.59172386]
[1740754635625,22.10494079,145.09,144.97,0.59172386]
[1740754635831,0.14216157,145.08,144.97,312.59172386]
[1740754636029,0.14216157,145.08,144.95,0.59172386]
[1740754636224,0.14216157,145.08,144.91,2.0]
[1740754636404,0.14216157,145.08,144.95,2.59172386]
[1740754636609,0.14216157,145.08,144.93,2.59172386]
[1740754636820,18.79181043,145.04,144.9,14.11172386]
[1740754637024,6.8951,145.03,144.92,2.0]
[1740754637330,6.8951,145.03,144.87,2.62172386]
[1740754637331,0.14216157,145.0,144.87,2.62172386]
[1740754637511,20.0,144.98,144.88,2.0]
[1740754637838,20.0,144.96,144.87,2.03]
[1740754638134,20.0,144.92,144.87,0.03]
[1740754638628,11.52,144.96,144.87,2.03]
[1740754638940,11.52,144.96,144.89,2.0]
[1740754639120,6.8985,144.96,144.9,2.0]
[1740754639321,26.8981,144.97,144.9,2.0]
[1740754639503,24.4275,145.01,144.93,2.0]
[1740754639709,24.4275,145.01,144.92,2.59172386]
[1740754640014,20.0,144.97,144.89,2.0]
[1740754640227,20.0,144.97,144.88,2.59172386]
[1740754640404,20.0,144.97,144.9,2.0]
[1740754640605,20.0,144.97,144.91,2.0]
[1740754640820,20.0,144.97,144.87,14.14172386]
[1740754641032,6.8989,144.95,144.87,0.03]
[1740754641208,18.79181043,144.94,144.87,0.03]
[1740754641414,30.31181043,144.94,144.87,0.03]
[1740754642431,116.2,144.93,144.87,0.03]
[1740754642627,0.14216157,144.92,144.87,0.03]
[1740754642819,116.2,144.93,144.87,0.03]
[1740754643510,123.0999,144.93,144.87,2.03]
[1740754643706,116.2,144.93,144.87,2.03]
[1740754643929,116.2,144.93,144.88,2.0]
[1740754644141,11.52,145.0,144.91,2.0]
[1740754644482,12.9075,145.01,144.95,2.0]
[1740754644740,12.9075,145.01,144.92,2.0]
[1740754644917,12.9075,145.01,144.93,2.0]
[1740754644918,19.8038,145.01,144.93,2.0]
[1740754645121,12.9075,145.01,144.97,2.0]
[1740754645328,6.8941,145.05,144.99,2.0]
[1740754645514,12.7909,145.06,144.99,2.0]
[1740754645834,12.7909,145.06,145.01,2.0]
[1740754646037,19.6847,145.06,144.95,2.0]
[1740754646241,20.0,145.02,144.91,6.9007]
[1740754646409,20.0,145.01,144.91,312.0]
[1740754646612,82.8,145.03,144.92,2.0]
[1740754646940,82.8,145.03,144.93,2.0]
[1740754647243,6.8956,145.02,144.96,2.0]
[1740754647413,6.8956,145.02,144.95,2.0]
[1740754647612,6.8956,145.02,144.96,2.0]
[1740754647835,20.0,145.01,144.93,2.0]
[1740754648234,20.0,144.98,144.91,2.03]
[1740754648435,20.0,144.97,144.91,2.03]
[1740754649328,6.8956,145.02,144.95,2.0]
[1740754649528,20.0,144.99,144.95,2.0]
[1740754650056,6.8956,145.02,144.96,2.0]
[1740754650260,20.0,144.99,144.95,312.0]
[1740754650554,20.0,144.99,144.92,2.0]
[1740754650935,20.0,144.99,144.91,2.03]
[1740754651135,38.79181043,144.98,144.91,0.03]
[1740754651330,20.0,144.93,144.91,0.03]
[1740754651523,32.118,144.93,144.91,0.0001]
[1740754652348,32.3499,144.97,144.91,2.0001]
[1740754652553,20.0,144.94,144.91,2.0001]
[1740754652741,20.0,144.94,144.91,0.0001]
[1740754653146,20.0,144.95,144.91,0.0001]
[1740754653341,20.0,144.94,144.91,0.0001]
[1740754654546,18.79181043,144.93,144.91,0.0001]
[1740754654753,20.0,144.94,144.91,0.0001]
[1740754655145,24.1428,144.97,144.91,0.0001]
[1740754655345,24.1428,144.97,144.91,2.0001]
[1740754655555,24.1428,144.97,144.91,0.0001]
[1740754655757,58.6326,144.97,144.91,0.0001]
[1740754655967,24.1428,144.97,144.91,2.0001]
[1740754656553,24.1428,144.97,144.91,312.0001]
[1740754657057,20.0,144.94,144.91,312.0001]
[1740754657251,6.8998,144.93,144.91,314.0001]
[1740754657452,24.1445,144.96,144.91,314.0001]
[1740754657771,24.1445,144.96,144.91,312.0001]
[1740754658065,20.0,144.93,144.91,0.0001]
[1740754659348,6.9003,144.92,144.91,0.0001]
[1740754659545,20.0,144.89,144.87,0.0001]
[1740754660141,20.0,144.88,144.87,0.0001]
[1740754660765,38.79181043,144.88,144.87,0.0001]
[1740754661140,20.0,144.84,144.77,2.0]
[1740754661357,20.0,144.8,144.78,2.0]
[1740754661563,20.0,144.8,144.76,0.03]
[1740754661564,20.0,144.8,144.76,2.03]
[1740754662138,20.14216157,144.79,144.74,0.0001]
[1740754662337,38.79181043,144.79,144.74,0.0001]
[1740754662540,20.0,144.75,144.74,0.0001]
[1740754663370,61.4507,144.75,144.69,10.7302397]
[1740754663587,78.7218,144.75,144.69,10.7302397]
[1740754663880,20.0,144.71,144.68,5.556e-05]
[1740754664675,20.0,144.71,144.66,0.59172386]
[1740754664844,27.62371497,144.75,144.66,0.59172386]
[1740754665046,20.0,144.72,144.65,0.59172386]
[1740754665275,24.1862,144.71,144.62,11.31698588]
[1740754665449,20.0,144.68,144.62,11.31698588]
[1740754665852,20.0,144.68,144.63,0.59172386]
[1740754666055,20.0,144.68,144.62,11.31698588]
[1740754666273,20.0,144.68,144.63,0.59172386]
[1740754667068,6.9103,144.71,144.66,0.59172386]
[1740754667273,20.0,144.7,144.65,0.59172386]
[1740754667570,24.185,144.72,144.65,0.59172386]
[1740754667750,24.185,144.72,144.63,0.59172386]
[1740754667751,20.0,144.7,144.63,0.59172386]